fUSD/lending_fUSD_20240330
["ID","MTS","AMOUNT","RATE_DAILY","PERIOD"]
[321058936,1711840257012,-500.0,0.00041643,4]
[321058937,1711840257021,-209.31806346,0.00041643,4]
[321058938,1711840257030,-550.7,0.00041643,4]
[321058939,1711840257039,-500.0,0.00041643,4]
[321058940,1711840257053,-500.0,0.00041643,4]
[321058941,1711840257063,-500.0,0.00041643,4]
[321058942,1711840257072,-500.0,0.00041643,4]
[321058943,1711840257081,-293.62891796,0.00041643,4]
[321058944,1711840257092,-500.0,0.00041643,4]
[321058945,1711840257102,-501.77,0.00041643,4]
[321058946,1711840257111,-500.0,0.00041643,4]
[321058947,1711840257121,-500.0,0.00041643,4]
[321058948,1711840257132,-500.0,0.00041643,4]
[321058949,1711840257142,-500.0,0.00041643,4]
[321058950,1711840257151,-500.0,0.00041643,4]
[321058951,1711840257160,-656.09,0.00041643,4]
[321058952,1711840257170,-500.0,0.00041643,4]
[321058953,1711840257179,-500.0,0.00041643,4]
[321058954,1711840257188,-500.0,0.00041643,4]
[321058955,1711840257198,-284.84568785,0.00041643,4]
[321058956,1711840257207,-500.0,0.00041643,4]
[321058957,1711840257216,-500.0,0.00041643,4]
[321058958,1711840257227,-500.0,0.00041643,4]
[321058959,1711840257236,-500.0,0.00041643,4]
[321058960,1711840257245,-556.86,0.00041643,4]
[321058961,1711840257253,-500.0,0.00041643,2]
[321058962,1711840257263,-500.0,0.00041643,4]
[321058963,1711840257272,-184.50631141,0.00041643,4]
[321058964,1711840257280,-500.0,0.00041643,4]
[321058965,1711840257289,-500.0,0.00041643,4]
[321058966,1711840257298,-386.52108936,0.00041643,4]
[321058967,1711840257306,-500.0,0.00041643,4]
[321058968,1711840257315,-500.0,0.00041643,4]
[321058969,1711840257324,-468.84431902,0.00041643,4]
[321058970,1711840257332,-500.0,0.00041643,4]
[321058971,1711840257341,-500.0,0.00041643,4]
[321058972,1711840257350,-500.0,0.00041643,4]
[321058973,1711840257358,-500.0,0.00041643,4]
[321058974,1711840257367,-500.0,0.00041643,4]
[321058975,1711840257376,-500.0,0.00041643,4]
[321058976,1711840257386,-500.0,0.00041643,4]
[321058977,1711840257395,-500.0,0.00041643,4]
[321058978,1711840257404,-500.0,0.00041643,4]
[321058979,1711840257414,-264.32586259,0.00041643,4]
[321058980,1711840257423,-607.78388296,0.00041643,4]
[321058981,1711840257432,-500.0,0.00041643,4]
[321058982,1711840257442,-500.0,0.00041643,2]
[321058983,1711840257451,-500.0,0.00041643,4]
[321058984,1711840257460,-500.0,0.00041643,4]
[321058985,1711840257469,-500.0,0.00041643,4]
[321058986,1711840257479,-500.0,0.00041643,4]
[321058987,1711840257488,-500.0,0.00041643,4]
[321058988,1711840257497,-500.0,0.00041643,4]
[321058989,1711840257506,-500.0,0.00041643,4]
[321058990,1711840257515,-500.0,0.00041643,4]
[321058991,1711840257524,-500.0,0.00041643,4]
[321058992,1711840257533,-500.0,0.00041643,4]
[321058993,1711840257542,-551.13694371,0.00041643,4]
[321058994,1711840257550,-500.0,0.00041643,4]
[321058995,1711840257559,-500.0,0.00041643,4]
[321058996,1711840257568,-500.0,0.00041643,4]
[321058997,1711840257578,-500.0,0.00041643,4]
[321058998,1711840257587,-500.0,0.00041643,4]
[321058999,1711840257596,-500.0,0.00041643,4]
[321059000,1711840257605,-500.0,0.00041643,4]
[321059001,1711840257614,-473.30289746,0.00041643,4]
[321059002,1711840257622,-500.0,0.00041643,4]
[321059003,1711840257631,-473.47255129,0.00041643,4]
[321059004,1711840257641,-500.0,0.00041643,4]
[321059005,1711840257649,-500.0,0.00041643,4]
[321059006,1711840257658,-500.0,0.00041643,4]
[321059007,1711840257667,-500.0,0.00041643,4]
[321059008,1711840257676,-500.0,0.00041643,4]
[321059009,1711840257685,-500.0,0.00041643,4]
[321059010,1711840257694,-500.0,0.00041643,4]
[321059011,1711840257704,-500.0,0.00041643,4]
[321059012,1711840257713,-500.0,0.00041643,4]
[321059013,1711840257723,-524.61540516,0.00041643,4]
[321059014,1711840257732,-1698.95,0.00041643,4]
[321059015,1711840257741,-500.0,0.00041643,4]
[321059016,1711840257750,-500.0,0.00041643,4]
[321059017,1711840257760,-500.0,0.00041643,4]
[321059018,1711840257769,-500.0,0.00041643,4]
[321059019,1711840257779,-616.23,0.00041643,4]
[321059020,1711840257788,-226.59082712,0.00041643,4]
[321059021,1711840257798,-742.31,0.00041643,4]
[321059022,1711840257807,-500.0,0.00041643,4]
[321059023,1711840257816,-500.0,0.00041643,4]
[321059024,1711840257826,-500.0,0.00041643,4]
[321059025,1711840257835,-500.0,0.00041643,4]
[321059026,1711840257844,-500.0,0.00041643,4]
[321059027,1711840257854,-500.0,0.00041643,2]
[321059028,1711840257863,-509.91,0.00041643,4]
[321059029,1711840257872,-500.0,0.00041643,4]
[321059030,1711840257881,-500.0,0.00041643,4]
[321059031,1711840257890,-1221.52,0.00041643,4]
[321059032,1711840257899,-500.0,0.00041643,4]
[321059033,1711840257908,-500.0,0.00041643,4]
[321059034,1711840257917,-583.88,0.00041643,4]
[321059035,1711840257926,-500.0,0.00041643,4]
[321059036,1711840257936,-500.0,0.00041643,4]
[321059037,1711840257945,-546.5,0.00041643,4]
[321059038,1711840257954,-500.0,0.00041643,4]
[321059039,1711840257963,-627.0884137,0.00041643,4]
[321059040,1711840257973,-500.0,0.00041643,4]
[321059041,1711840257982,-185.18,0.00041643,4]
[321059042,1711840257992,-500.0,0.00041643,4]
[321059043,1711840258001,-500.0,0.00041643,4]
[321059044,1711840258011,-389.4184728,0.00041643,4]
[321059045,1711840258020,-500.0,0.00041643,4]
[321059046,1711840258030,-500.0,0.00041643,4]
[321059047,1711840258039,-500.0,0.00041643,4]
[321059048,1711840258053,-500.0,0.00041643,4]
[321059049,1711840258062,-628.84,0.00041643,4]
[321059050,1711840258072,-1100.67,0.00041643,4]
[321059051,1711840258081,-500.0,0.00041643,4]
[321059052,1711840258092,-500.0,0.00041643,4]
[321059053,1711840258101,-500.0,0.00041643,4]
[321059054,1711840258111,-500.0,0.00041643,4]
[321059055,1711840258122,-500.0,0.00041643,4]
[321059056,1711840258132,-500.0,0.00041643,4]
[321059057,1711840258141,-500.0,0.00041643,4]
[321059058,1711840258150,-500.0,0.00041643,4]
[321059059,1711840258159,-500.0,0.00041643,4]
[321059060,1711840258169,-500.0,0.00041643,4]
[321059061,1711840258178,-500.0,0.00041643,4]
[321059062,1711840258188,-500.0,0.00041643,4]
[321059063,1711840258198,-1419.83,0.00041643,4]
[321059064,1711840258207,-500.0,0.00041643,4]
[321059065,1711840258217,-295.0,0.00041643,4]
[321059066,1711840258227,-500.0,0.00041643,4]
[321059067,1711840258237,-500.0,0.00041643,4]
[321059068,1711840258247,-535.93,0.00041643,4]
[321059069,1711840258256,-500.0,0.00041643,4]
[321059070,1711840258267,-500.0,0.00041643,4]
[321059071,1711840258276,-500.0,0.00041643,4]
[321059072,1711840258286,-500.0,0.00041643,4]
[321059073,1711840258295,-573.01,0.00041643,4]
[321059074,1711840258306,-500.0,0.00041643,4]
[321059075,1711840258316,-500.0,0.00041643,4]
[321059076,1711840258326,-500.0,0.00041643,4]
[321059077,1711840258335,-500.0,0.00041643,4]
[321059078,1711840258346,-500.0,0.00041643,4]
[321059079,1711840258355,-2246.56,0.00041643,4]
[321059080,1711840258365,-647.98,0.00041643,4]
[321059081,1711840258375,-500.0,0.00041643,4]
[321059082,1711840258385,-500.0,0.00041643,4]
[321059083,1711840258395,-1012.71,0.00041643,4]
[321059084,1711840258405,-500.0,0.00041643,4]
[321059085,1711840258415,-4414.32,0.00041643,4]
[321059086,1711840258424,-603.79,0.00041643,4]
[321059087,1711840258434,-500.0,0.00041643,4]
[321059088,1711840258444,-500.0,0.00041643,4]
[321059089,1711840258454,-603.54,0.00041643,4]
[321059090,1711840258464,-629.16,0.00041643,4]
[321059091,1711840258474,-1878.55,0.00041643,4]
[321059092,1711840258483,-500.0,0.00041643,4]
[321059093,1711840258493,-18463.9,0.00041643,4]
[321059094,1711840258502,-500.0,0.00041643,4]
[321059095,1711840258513,-500.0,0.00041643,4]
[321059096,1711840258522,-506.62,0.00041643,4]
[321059097,1711840258532,-500.0,0.00041643,4]
[321059098,1711840258542,-500.0,0.00041643,4]
[321059099,1711840258552,-2271.84,0.00041643,4]
[321059100,1711840258561,-500.0,0.00041643,4]
[321059101,1711840258571,-1686.53,0.00041643,4]
[321059102,1711840258581,-500.0,0.00041643,4]
[321059103,1711840258591,-2436.12,0.00041643,4]
[321059104,1711840258601,-500.0,0.00041643,4]
[321059105,1711840258611,-500.0,0.00041643,4]
[321059106,1711840258620,-3059.2,0.00041643,4]
[321059107,1711840258630,-3637.69,0.00041643,4]
[321059108,1711840258639,-9970.42,0.00041643,4]
[321059109,1711840258649,-2005.74,0.00041643,4]
[321059110,1711840258658,-3677.67,0.00041643,4]
[321059111,1711840258668,-500.0,0.00041643,4]
[321059112,1711840258677,-680.16,0.00041643,4]
[321059113,1711840258687,-500.0,0.00041643,4]
[321059114,1711840258697,-500.0,0.00041643,4]
[321059115,1711840258706,-807.18,0.00041643,4]
[321059116,1711840258716,-945.38,0.00041643,4]
[321059117,1711840258728,-500.0,0.00041643,4]
[321059118,1711840258738,-782.2,0.00041643,4]
[321059119,1711840258747,-500.0,0.00041643,4]
[321059120,1711840258757,-500.0,0.00041643,4]
[321059121,1711840258766,-2166.61,0.00041643,4]
[321059122,1711840258775,-500.0,0.00041643,4]
[321059123,1711840258785,-2962.31,0.00041643,4]
[321059124,1711840258794,-500.0,0.00041643,4]
[321059125,1711840258803,-500.0,0.00041643,4]
[321059126,1711840258813,-500.0,0.00041643,4]
[321059127,1711840258823,-1393.17,0.00041643,4]
[321059128,1711840258833,-500.0,0.00041643,4]
[321059129,1711840258843,-572.2,0.00041643,4]
[321059130,1711840258853,-500.0,0.00041643,4]
[321059131,1711840258862,-637.01,0.00041643,4]
[321059132,1711840258872,-1950.36,0.00041643,4]
[321059133,1711840258882,-500.0,0.00041643,4]
[321059134,1711840258891,-500.0,0.00041643,4]
[321059135,1711840258901,-562.19,0.00041643,4]
[321059136,1711840258911,-2051.53,0.00041643,4]
[321059137,1711840258921,-500.0,0.00041643,4]
[321059138,1711840258930,-500.0,0.00041643,4]
[321059139,1711840258940,-751.0,0.00041643,4]
[321059140,1711840258949,-500.0,0.00041643,4]
[321059141,1711840258959,-500.0,0.00041643,4]
[321059142,1711840258969,-539.58,0.00041643,4]
[321059143,1711840258980,-500.0,0.00041643,4]
[321059144,1711840258989,-500.0,0.00041643,4]
[321059145,1711840258999,-500.0,0.00041643,4]
[321059146,1711840259009,-727.08,0.00041643,4]
[321059147,1711840259019,-1074.1,0.00041643,4]
[321059148,1711840259029,-500.0,0.00041643,4]
[321059149,1711840259039,-500.0,0.00041643,4]
[321059150,1711840259056,-11746.1,0.00041643,4]
[321059151,1711840259065,-590.49,0.00041643,4]
[321059152,1711840259075,-500.0,0.00041643,4]
[321059153,1711840259085,-500.0,0.00041643,4]
[321059154,1711840259095,-540.8,0.00041643,4]
[321059155,1711840259104,-1802.11,0.00041643,4]
[321059156,1711840259114,-2393.19,0.00041643,4]
[321059157,1711840259125,-500.0,0.00041643,4]
[321059158,1711840259135,-921.25,0.00041643,4]
[321059159,1711840259145,-6872.19,0.00041643,4]
[321059160,1711840259154,-1452.25,0.00041643,4]
[321059161,1711840259164,-442.93330491,0.00041643,4]
[321059162,1711840259174,-1011.42,0.00041643,4]
[321059163,1711840259184,-1663.81,0.00041643,4]
[321059164,1711840259193,-500.0,0.00041643,4]
[321059165,1711840259203,-1727.44,0.00041643,4]
[321059166,1711840259213,-500.0,0.00041643,4]
[321059167,1711840259223,-696.25,0.00041643,4]
[321059168,1711840259233,-500.0,0.00041643,4]
[321059169,1711840259243,-500.0,0.00041643,4]
[321059170,1711840259253,-500.0,0.00041643,4]
[321059171,1711840259262,-1302.95,0.00041643,4]
[321059172,1711840259272,-500.0,0.00041643,4]
[321059173,1711840259282,-775.27,0.00041643,4]
[321059174,1711840259292,-500.0,0.00041643,4]
[321059175,1711840259302,-500.0,0.00041643,4]
[321059176,1711840259312,-500.0,0.00041643,4]
[321059177,1711840259322,-500.0,0.00041643,4]
[321059178,1711840259331,-500.0,0.00041643,4]
[321059179,1711840259341,-2634.33,0.00041643,4]
[321059180,1711840259351,-500.0,0.00041643,4]
[321059181,1711840259361,-500.0,0.00041643,4]
[321059182,1711840259370,-1036.18,0.00041643,4]
[321059183,1711840259380,-3392.13,0.00041643,4]
[321059184,1711840259390,-1105.96,0.00041643,4]
[321059185,1711840259399,-500.0,0.00041643,2]
[321059186,1711840259409,-500.0,0.00041643,4]
[321059187,1711840259418,-1117.8,0.00041643,4]
[321059188,1711840259427,-500.0,0.00041643,4]
[321059189,1711840259437,-3019.5,0.00041643,4]
[321059190,1711840259447,-622.95472542,0.00041643,4]
[321059191,1711840259456,-500.0,0.00041643,4]
[321059192,1711840259466,-3861.9,0.00041643,4]
[321059193,1711840259476,-500.0,0.00041643,4]
[321059194,1711840259486,-680.28,0.00041643,4]
[321059195,1711840259495,-500.0,0.00041643,4]
[321059196,1711840259505,-500.0,0.00041643,4]
[321059197,1711840259515,-1388.99,0.00041643,4]
[321059198,1711840259525,-500.0,0.00041643,4]
[321059199,1711840259534,-1476.07,0.00041643,4]
[321059200,1711840259544,-1471.68,0.00041643,4]
[321059201,1711840259554,-3076.33,0.00041643,4]
[321059202,1711840259563,-500.0,0.00041643,4]
[321059203,1711840259573,-3746.79,0.00041643,4]
[321059204,1711840259582,-187.91278414,0.00041643,4]
[321059205,1711840259592,-500.0,0.00041643,4]
[321059206,1711840259601,-162.28209146,0.00041643,4]
[321059207,1711840259611,-904.71,0.00041643,4]
[321059208,1711840259620,-850.43,0.00041643,4]
[321059209,1711840259630,-505.63,0.00041643,4]
[321059210,1711840259639,-500.0,0.00041643,4]
[321059211,1711840259648,-500.0,0.00041643,4]
[321059212,1711840259658,-1036.53,0.00041643,4]
[321059213,1711840259668,-500.0,0.00041643,4]
[321059214,1711840259677,-1508.62,0.00041643,4]
[321059215,1711840259687,-1040.55,0.00041643,4]
[321059216,1711840259696,-500.0,0.00041643,4]
[321059217,1711840259706,-2432.62,0.00041643,4]
[321059218,1711840259716,-500.0,0.00041643,4]
[321059219,1711840259725,-771.93,0.00041643,4]
[321059220,1711840259735,-3518.03,0.00041643,4]
[321059221,1711840259745,-621.12,0.00041643,4]
[321059222,1711840259754,-2972.99,0.00041643,4]
[321059223,1711840259763,-619.51,0.00041643,4]
[321059224,1711840259773,-500.0,0.00041643,4]
[321059225,1711840259783,-500.0,0.00041643,4]
[321059226,1711840259792,-880.03,0.00041643,4]
[321059227,1711840259801,-2114.81,0.00041643,4]
[321059228,1711840259811,-500.0,0.00041643,4]
[321059229,1711840259820,-1060.38859439,0.00041643,4]
[321059230,1711840259830,-1006.8,0.00041643,4]
[321059231,1711840259839,-500.0,0.00041643,4]
[321059232,1711840259848,-500.0,0.00041643,4]
[321059233,1711840259859,-500.0,0.00041643,4]
[321059234,1711840259869,-667.76,0.00041643,4]
[321059235,1711840259879,-933.69,0.00041643,4]
[321059236,1711840259889,-500.0,0.00041643,4]
[321059237,1711840259898,-801.7,0.00041643,4]
[321059238,1711840259909,-500.0,0.00041643,4]
[321059239,1711840259919,-500.0,0.00041643,4]
[321059240,1711840259928,-1771.7,0.00041643,4]
[321059241,1711840259938,-500.0,0.00041643,4]
[321059242,1711840259948,-500.0,0.00041643,4]
[321059243,1711840259957,-1554.81,0.00041643,4]
[321059244,1711840259967,-831.86,0.00041643,4]
[321059245,1711840259977,-172.17742235,0.00041643,4]
[321059246,1711840259987,-500.0,0.00041643,4]
[321059247,1711840259997,-540.6,0.00041643,4]
[321059248,1711840260007,-658.23,0.00041643,4]
[321059249,1711840260017,-500.0,0.00041643,4]
[321059250,1711840260027,-500.0,0.00041643,4]
[321059251,1711840260038,-500.0,0.00041643,4]
[321059252,1711840260218,-626.91,0.00041643,4]
[321059253,1711840260228,-500.0,0.00041643,4]
[321059254,1711840260239,-500.0,0.00041643,4]
[321059255,1711840260249,-718.65,0.00041643,4]
[321059256,1711840260259,-657.81,0.00041643,4]
[321059257,1711840260269,-1094.07,0.00041643,4]
[321059258,1711840260279,-500.0,0.00041643,4]
[321059259,1711840260289,-500.0,0.00041643,4]
[321059260,1711840260298,-3251.0,0.00041643,4]
[321059261,1711840260308,-577.29,0.00041643,4]
[321059262,1711840260317,-1223.45,0.00041643,4]
[321059263,1711840260327,-425.5008588,0.00041643,4]
[321059264,1711840260336,-2119.04,0.00041643,4]
[321059265,1711840260346,-500.0,0.00041643,4]
[321059266,1711840260355,-500.0,0.00041643,2]
[321059267,1711840260364,-748.38,0.00041643,4]
[321059268,1711840260373,-500.0,0.00041643,4]
[321059269,1711840260382,-500.0,0.00041643,4]
[321059270,1711840260392,-500.0,0.00041643,4]
[321059271,1711840260401,-500.0,0.00041643,4]
[321059272,1711840260410,-3468.99,0.00041643,4]
[321059273,1711840260419,-3480.89,0.00041643,4]
[321059274,1711840260429,-500.0,0.00041643,4]
[321059275,1711840260439,-500.0,0.00041643,4]
[321059276,1711840260448,-500.0,0.00041643,4]
[321059277,1711840260457,-890.5,0.00041643,4]
[321059278,1711840260466,-2428.29,0.00041643,4]
[321059279,1711840260476,-500.0,0.00041643,4]
[321059280,1711840260485,-715.2,0.00041643,4]
[321059281,1711840260494,-500.0,0.00041643,4]
[321059282,1711840260504,-500.0,0.00041643,4]
[321059283,1711840260513,-500.0,0.00041643,4]
[321059284,1711840260523,-820.93,0.00041643,4]
[321059285,1711840260532,-2195.61,0.00041643,4]
[321059286,1711840260541,-500.0,0.00041643,4]
[321059287,1711840260551,-500.0,0.00041643,4]
[321059288,1711840260560,-500.0,0.00041643,4]
[321059289,1711840260569,-5156.18,0.00041643,4]
[321059290,1711840260579,-500.0,0.00041643,4]
[321059291,1711840260588,-1000.0,0.00041644,120]
[321059292,1711840260597,-231.354962,0.00041655,30]
[321059293,1711840260607,-466.251296,0.00041655,30]
[321059294,1711840260616,-499.452207,0.00041655,30]
[321059295,1711840260626,-228.585643,0.00041655,30]
[321059296,1711840260635,-375.747202,0.00041655,30]
[321059297,1711840260644,-1502.988811,0.00041655,30]
[321059298,1711840260654,-165.76783,0.00041655,30]
[321059299,1711840260663,-194.271374,0.00041655,30]
[321059300,1711840260672,-484.69282171,0.00041689,2]
[321059301,1711840260681,-7000.0,0.000417,15]
[321059302,1711840260691,-638.55605632,0.00041707,34]
[321059303,1711840260700,-150.0,0.00041732,2]
[321059304,1711840260710,-150.0,0.00041762,2]
[321059305,1711840260719,-150.0,0.00041768,30]
[321059306,1711840260728,-2100.0,0.00041768,14]
[321059307,1711840260737,-600.0,0.0004178,30]
[321059308,1711840260746,-600.0,0.0004178,30]
[321059309,1711840260756,-500.0,0.0004178,30]
[321059310,1711840260765,-2364.47608468,0.00041781,7]
[321059311,1711840260774,-838.38660546,0.00041781,7]
[321059312,1711840260783,-1878.4510479,0.00041781,7]
[321059313,1711840260792,-150.0,0.00041798,120]
[321059314,1711840260802,-1033.68099778,0.000418,4]
[321059315,1711840260811,-7000.0,0.000418,15]
[321059316,1711840260821,-1565.463763,0.000418,37]
[321059317,1711840260831,-275.5,0.000418,3]
[321059318,1711840260840,-638.55605632,0.00041803,34]
[321059319,1711840260850,-3648.36284981,0.0004183,16]
[321059320,1711840260859,-150.0,0.00041868,2]
[321059321,1711840260868,-564.09572045,0.0004187,2]
[321059322,1711840260878,-564.09572045,0.0004187,2]
[321059323,1711840260888,-564.09572045,0.0004187,2]
[321059324,1711840260899,-564.09572045,0.0004187,2]
[321059325,1711840260910,-564.09572045,0.0004187,2]
[321059326,1711840260919,-564.09572045,0.0004187,2]
[321059327,1711840260933,-564.09572045,0.0004187,2]
[321059328,1711840260942,-564.09572045,0.0004187,2]
[321059329,1711840260951,-564.09572045,0.0004187,2]
[321059330,1711840260961,-564.09572045,0.0004187,2]
[321059331,1711840260970,-564.09572045,0.0004187,2]
[321059332,1711840260980,-564.09572045,0.0004187,2]
[321059333,1711840260990,-564.09572045,0.0004187,2]
[321059334,1711840261000,-564.09572045,0.0004187,2]
[321059335,1711840261010,-564.09572045,0.0004187,2]
[321059336,1711840261019,-564.09572045,0.0004187,2]
[321059337,1711840261029,-564.09572045,0.0004187,2]
[321059338,1711840261038,-564.09572045,0.0004187,2]
[321059339,1711840261050,-564.09572045,0.0004187,2]
[321059340,1711840261060,-564.59,0.0004187,2]
[321059341,1711840261070,-6565.37319782,0.0004188,120]
[321059342,1711840261080,-656.53941159,0.00041887,2]
[321059343,1711840261090,-415.1012544,0.0004189,3]
[321059344,1711840261099,-332098.16426433,0.0004189,2]
[321059345,1711840261415,-3196.84750531,0.0004189,2]
[321059346,1711840261426,-35531.40749109,0.0004189,2]
[321059347,1711840261454,-2538.75,0.00041095,4]
[321059348,1711840261463,-177470.57669769,0.0004189,2]
[321059349,1711840261472,-500.0,0.00041899,4]
[321059350,1711840261480,-500.0,0.00041899,4]
[321059351,1711840261489,-150.0,0.00041899,7]
[321059352,1711840261498,-5038.24299396,0.000419,2]
[321059353,1711840261508,-479.0,0.000419,28]
[321059354,1711840261517,-1022.596525,0.000419,4]
[321059355,1711840261526,-172.639999,0.000419,74]
[321059356,1711840261536,-212333.91542638,0.000419,30]
[321059357,1711840429876,152.73976595,0.00042037,41]
[321059413,1711841432318,-254.67388233,0.00031527,4]
[321059414,1711841432329,-1679.5848382,0.00031527,4]
[321059415,1711841432339,-1805.3651618,0.00031528,4]
[321059421,1711841438361,-417.075,0.00031528,4]
[321059422,1711841438421,-307.1764168,0.00031528,4]
[321059423,1711841438434,-389.1435832,0.00037638,2]
[321059424,1711841438480,-164.9564168,0.00037638,2]
[321059425,1711841438490,-12561.4349,0.0003829,2]
[321059426,1711841438501,-329.9338,0.0003839,2]
[321059427,1711841438510,-1000.0,0.0003839,2]
[321059428,1711841438519,-9441.8602,0.0003839,2]
[321059429,1711841438528,-1633.9227,0.0003839,2]
[321059430,1711841438538,-157.033108,0.00038488,8]
[321059431,1711841438547,-254.03947659,0.00038489,4]
[321059432,1711841438556,-199105.01511143,0.0003849,5]
[321059433,1711841438566,-1000.0,0.00039464,2]
[321059434,1711841438575,-683.91,0.00039497,2]
[321059435,1711841438585,-716.64,0.00039533,2]
[321059436,1711841438597,-1047.63,0.00039582,2]
[321059437,1711841438608,-161.4,0.00039646,15]
[321059438,1711841438618,-155.03,0.00039661,2]
[321059439,1711841438628,-511.0,0.00039726,7]
[321059440,1711841438639,-275.0,0.000398,3]
[321059441,1711841438648,-554.1,0.00039902,2]
[321059442,1711841438658,-235.0150307,0.0004,6]
[321059443,1711841438667,-499.99,0.00040222,2]
[321059444,1711841438676,-150.0,0.00040442,2]
[321059445,1711841438687,-213.0,0.00040442,2]
[321059446,1711841438696,-203.005699,0.00040639,2]
[321059447,1711841438706,-726.711406,0.00040639,2]
[321059448,1711841438716,-1090.06711,0.00040639,2]
[321059449,1711841438725,-511.0,0.00040685,7]
[321059450,1711841438735,-1000.0,0.000409,14]
[321059451,1711841438745,-165.4785341,0.00040955,2]
[321059452,1711841438754,-174.47985436,0.00040995,10]
[321059453,1711841438764,-420.06711227,0.00040995,2]
[321059454,1711841438774,-559.31045954,0.00041,4]
[321059457,1711841438783,-3368.5161918,0.00041,2]
[321059459,1711841438793,-227.51744779,0.00041,4]
[321059462,1711841438803,-150.71,0.00041085,2]
[321059466,1711841438812,-150.71,0.00041085,2]
[321059467,1711841438822,-150.71,0.0004109,2]
[321059469,1711841438831,-157.033108,0.00041091,8]
[321059470,1711841438842,-157.033108,0.00041092,8]
[321059471,1711841438851,-157.033108,0.00041093,8]
[321059472,1711841438860,-157.033108,0.00041094,8]
[321059473,1711841438869,-500.0,0.00041095,4]
[321059474,1711841438878,-500.0,0.00041095,4]
[321059475,1711841438887,-500.0,0.00041095,4]
[321059476,1711841438897,-500.0,0.00041095,4]
[321059477,1711841438906,-500.0,0.00041095,4]
[321059478,1711841438915,-337.90166747,0.00041095,4]
[321059479,1711841438925,-500.0,0.00041095,4]
[321059480,1711841438935,-500.0,0.00041095,4]
[321059481,1711841438944,-500.0,0.00041095,4]
[321059482,1711841438954,-500.0,0.00041095,4]
[321059483,1711841438963,-500.0,0.00041095,4]
[321059484,1711841438973,-500.0,0.00041095,4]
[321059485,1711841438982,-564.92770428,0.00041095,4]
[321059486,1711841438991,-500.0,0.00041095,4]
[321059487,1711841439002,-500.0,0.00041095,4]
[321059488,1711841439011,-1319.31,0.00041095,2]
[321059489,1711841439020,-500.0,0.00041095,4]
[321059490,1711841439031,-500.0,0.00041095,4]
[321059491,1711841439041,-500.0,0.00041095,4]
[321059492,1711841439051,-500.0,0.00041095,4]
[321059493,1711841439060,-388.26720504,0.00041095,4]
[321059494,1711841439070,-252.77674319,0.00041095,4]
[321059495,1711841439079,-500.0,0.00041095,4]
[321059496,1711841439089,-500.0,0.00041095,4]
[321059497,1711841439098,-500.0,0.00041095,4]
[321059498,1711841439107,-500.0,0.00041095,4]
[321059499,1711841439117,-500.0,0.00041095,4]
[321059500,1711841439127,-515.38321347,0.00041095,4]
[321059501,1711841439137,-500.0,0.00041095,4]
[321059502,1711841439147,-500.0,0.00041095,4]
[321059503,1711841439157,-500.0,0.00041095,4]
[321059504,1711841439168,-500.0,0.00041095,4]